{"text_format":"1","workbook":"xlsx","n_sheets":7,"sheets":["Introduction","Data Dictionary","Grantee Dashboard","Expenditure Graph Data","Expenditure Graph","Audit-Retrofit Graph Data","Assessments & Upgrades Graph"],"not_rendered":{"charts":4,"images":0,"macros":1,"external_links":5,"defined_names":18,"comments":0,"pivot_tables":0},"unopened":[{"sheet":"Expenditure Graph","index":4,"reason":"not_a_worksheet"},{"sheet":"Assessments & Upgrades Graph","index":6,"reason":"not_a_worksheet"}],"bounds":{"document_bytes":16777216,"sheet_cells":100000,"rows_first":2000,"rows_last":500,"rows_between":2000,"halvings":0,"cell_chars":16384,"cell_head_chars":4096},"cells_cut":0,"cells_raw":0,"read":"whole","date_system":"1900"}

{"sheet":"Introduction","index":0,"n_rows":19,"n_cols":8,"rows_kept":19,"cut":false,"hidden":false,"merged":[[4,1,5,1],[8,1,20,1],[4,2,5,22],[1,2,1,22],[9,7,10,21],[12,7,13,21],[15,7,16,21],[18,7,19,21]]}
[]
[null,null,"Grantee Dashboard"]
[]
[]
[null,"Introduction","This spreadsheet presents a summary of data reported by an organization awarded federal financial assistance (cooperative agreements or grants) by the U.S. Department of Energy (DOE) Better Buildings Neighborhood Program (BBNP) from July 2010 or September 2010 through September 30, 2014. This document is not an evaluation of the BBNP program or a final report of award recipient activities. The purpose of this document is to provide a summary of data reported quarterly by recipients.\n\nThe BBNP included 34 (25 topic 1 and 9 topic 2) Energy Efficiency Conservation Block Grants (EECBGs) and seven State Energy Program (SEP) cooperative agreements. Topic 1 EECBGs were awarded at the beginning of June 2010, Topic 2 EECBGs were awarded in August 2010, and SEP agreements were awarded in October 2010. The first Quarterly Program Reports were due from recipients for Q4-2010 (grant start date through December 30, 2010) regardless of when the awards occurred. \n\nEECBG (34) and SEP (7) awards had slightly different requirements for BBNP quarterly Program Reports. For example, reporting job hours worked was mandatory for EECBG awards and voluntary for SEP. Reporting workers trained and certified was mandatory for SEP awards and voluntary for EECBG. Reporting the number of active contractors performing retrofits under the program was mandatory for EECBG awards and voluntary for SEP.\n\nThe data summary provided in this document is based on information recipients formally submitted to DOE using the BBNP Quarterly Program Report. Recipients reported quarterly totals for some information like spending, estimated energy savings, audits completed, and workers trained or certified, while information like invoiced cost and loan amount was reported for each upgrade project. A total invoiced cost or loan amount is obtained from summing all the values reported for each upgrade project record that included this information. Estimated energy savings was reported as a total for the quarter."]
[]
[]
[]
[null,"Links"]
[null,null,null,null,null,null,null,"This tab provides a brief description of key data fields in the Grantee Dashboard tab."]
[]
[]
[null,null,null,null,null,null,null,"This tab includes important project information that include programmatic information, job hours, invoiced cost, assessments and upgrades, total energy savings, number of loans and other details. "]
[]
[]
[null,null,null,null,null,null,null,"This tab shows the cumulative energy assessments and upgrades reported through the end of September 2014 and the estimated annual source energy savings."]
[]
[]
[null,null,null,null,null,null,null,"This tab shows the total recipient expenditures, other federal expenditures,  and non-federal expenditures  (leveraged spending) compared to the total investment in building upgrades (reported as invoiced cost)."]

{"sheet":"Data Dictionary","index":1,"n_rows":70,"n_cols":3,"rows_kept":70,"cut":false,"hidden":false,"merged":[[29,2,31,2],[29,0,32,0],[33,0,34,0],[35,0,38,0],[39,0,69,0],[1,0,4,0],[5,0,6,0],[8,0,14,0],[15,0,21,0],[24,0,28,0]]}
["Data Field Section","Data Field ","Description"]
["Outlays","Total Marketing & Outreach","This field consists of grant outlays for communications activities designed to identify, reach and motivate potential program participants to take actions to either learn more (e.g. assessment or other informational activity) energy efficiency or initiate an energy efficiency upgrade at the program level.  "]
[null,"Labor & Materials Cost","This field consists of grant outlays incurred as part of an assessment or upgrade directly associated with the installation of more energy efficient equipment, appliances, or building components (e.g. insulation, windows, etc.) at the program level. "]
[null,"Other Program Expenses","This field consists of other program grant outlays for the quarter at the program level, not classified as materials, labor, marketing, or outreach. "]
[null,"Total Grantee Outlays","This field is the total grant outlays for the quarter, calculated by the sum of the three categories above - Total Marketing & Outreach, Labor & Materials Cost, and Other Program Expenses. Outlays are distinct from DOE's definition of expenditures (i.e., outlays do not include funds drawn down to capitalize a loan fund). Outlays represent actual grant funds spent on program delivery and any associated incentives or loans issued during the quarter."]
["Leveraging","Other Federal Expenditures","This field is the total amount of other Federal leveraged funds expended by the awardee during the most recent quarter.  Other federal funds many include funds from EECBG and SEP, loans from HUD, etc."]
[null,"Non-Federal Expenditures","This field is the total estimated amount of Non-Federal funds expended during the most recent quarter.  This includes third-party, in-kind contributions, and the portion of the costs of a federally assisted project or program not borne by the Federal Government."]
["Invoiced Cost","Retrofit Invoiced Cost","This field is the total cost of the upgrade (customer contribution plus BetterBuildings funds plus other leveraged funds.) Other leveraged funds can include those from both Federal and non-Federal sources (EECBG, SEP, financial institutions etc.)"]
["Assessments","Residential Single-Family","This field is the total number of residential single-family assessments completed among BB and leveraged partners. "]
[null,"Residential Multi-Family Units","This field is the total number of residential multi-family unit assessments completed among BB and leveraged partners. "]
[null,"Residential Multi-Family Buildings","This field is the total number of residential multi-family building assessments completed among BB and leveraged partners."]
[null,"Commercial Buildings","This field is the total number of commercial building assessments completed among BB and leveraged partners."]
[null,"Industrial Buildings","This field is the total number of industrial building assessments completed among BB and leveraged partners."]
[null,"Agriculture Buildings","This field is the total number of agricultural building assessments completed among BB and leveraged partners."]
[null,"Total Assessments","This field is the total number of assessments summed from the above building sectors."]
["Upgrades","Residential Single-Family","This field is the total number of residential single-family upgrades completed among BB and leveraged partners. "]
[null,"Residential Multi-Family Units","This field is the total number of residential multi-family unit upgrades completed among BB and leveraged partners. "]
[null,"Residential Multi-Family Buildings","This field is the total number of residential multi-family building upgrades completed among BB and leveraged partners."]
[null,"Commercial Buildings","This field is the total number of commercial building upgrades completed among BB and leveraged partners."]
[null,"Industrial Buildings","This field is the total number of industrial building upgrades completed among BB and leveraged partners."]
[null,"Agriculture Buildings","This field is the total number of agricultural building upgrades completed among BB and leveraged partners."]
[null,"Total Upgrades","This field is the total number of upgrades summed from the above building sectors."]
[null,"Commercial Buildings Floorspace (square feet)*","This field is the total commercial building floorspace upgraded, that includes all the area enclosed by the exterior walls of the building, both finished and unfinished, including indoor parking facilities, basements, hallways, lobbies, stairways, and elevator shafts."]
[null,"Total Job Hours","This field is the total job hours worked in that quarter. A job hour worked includes hours worked administrating or working under projects funded by BBNP and leveraged funds (i.e., state and local funds, utilities, financial institutions, private contributions, etc). This includes, but is not limited to, administrative staff, consultants and contractors involved in the management or deployment of upgrade and assessment activities. "]
["Total Estimated Annual Energy Savings","Electricity (kWh)","This field is the total estimated annual Electricity kWh saved based on the total upgrade measures installed during that quarter. Additionally, any electricity kWh savings through direct installations conducted are also included. "]
[null,"Natural Gas (therms)","This field is the total estimated annual Natural Gas therms saved based on the total upgrade measures installed during the most recent quarter. Additionally, any natural gas therm savings through direct installations conducted are also included. "]
[null,"Heating Oil (gallons)","This field is the total estimated annual Heating Oil gallons saved based on the total upgrade measures installed during the most recent quarter. Additionally, any heating oil gallon savings through direct installations conducted are also included. "]
[null,"LPG (gallons)","This field is the total estimated annual LPG gallons saved based on the total upgrade measures installed during the most recent quarter. Additionally, any LPG gallon savings through direct installations conducted are also included. "]
[null,"Energy Cost Savings","This field is the total annual cost savings based on the total measures installed during the most recent quarter.  Additionally, any cost savings through direct installations conducted are also included. "]
["Market Transformation","Market Definition - Residential","The Market Definition must be broad enough to require the upgrade of a substantial number of buildings to reach the 2% annual goal. \"Substantial\" would mean that the minimum market would be comprised of 50,000 residential buildings such that 1,000 homes would have to be upgraded annually. Markets can cross city and state boundaries. This field is mandatory for SEP Awardees and voluntary for EECBG Grantees."]
[null,"Market Definition - Commercial"]
[null,"Market Definition - Other (Please specify here)"]
[null,"Number of active contractors performing retrofits under program","This field consists of active and qualified (qualified according to awardee program guidance) contractors who have performed one or more upgrades. This field is mandatory for EECBG Grantees and voluntary for SEP Awardees. "]
["Individuals Trained and Certified","Number of Trained Workers","This field consists of the total number of workers trained during that quarter. This field is mandatory for SEP Awardees and voluntary for EECBG Grantees."]
[null,"Number of Certified Workers","This field consists of the total number of workers certified during that quarter. Awardees were required to use nationally-recognized certifications, or if a non nationally-recongized organization was used, a justification was required. This field is mandatory for SEP Awardees and voluntary for EECBG Grantees."]
["Loan Information","Number of Loans Provided - Residential","Total number of residential loans reported in that quarter."]
[null,"Total Amount of Loans Provided - Residential ($)","This field consists of the total amount of residential loan(s) taken on by the customer."]
[null,"Number of Loans Provided - Commercial","Total number of commercial loans reported in that quarter."]
[null,"Total Amount of Loans Provided - Commercial ($)","This field consists of the total amount of commercial loan(s) taken on by the customer."]
["Marketing and Outreach","Business organization outreach_Number attending session","The number of buildings owners that attended a meeting to learn more about the program."]
[null,"Contests_Number of Contests","The number of contests held by the program."]
[null,"Contests_Number of participants","The total number of participants in the contests."]
[null,"Direct mail_Number of direct mail slips","The number of direct mail pieces that were sent out."]
[null,"Direct mail_Number of applications with direct mail IDs","The number of applications that were solicited by direct mail. "]
[null,"Door to door_Number of homes visited","The number of homes that were visited in any door to door outreach undertaken."]
[null,"Door to door_Number of homes agreeing","The number of homes that agreed to sign up for further action, whether it was an assessment, a neighborhood meeting, etc."]
[null,"Hotline_Number of calls","The number of calls to the hotline."]
[null,"Hotline_Number of calls that lead to applications","The number of calls that led to applications being filled out."]
[null,"One-stop-shop_Number of visitors","The number of building owners that expressed interest in program service offerings, whether by phone, email, or walk-ins."]
[null,"One-stop-shop_Number who requests services","The number of building owners that requested follow-up services, such as a direct installation or an assessment."]
[null,"One-stop-shop_Number of clients served","The number of building owners that followed through to having an upgrade conducted."]
[null,"Online Advertising_Number of advertisements","The number of 'buys' that were placed for online advertising space through internet search ads or banners, including Facebook ads."]
[null,"Online Advertising_Number of clicks","The number of clicks on the above advertisements such as internet search ads or banners, including Facebook ads."]
[null,"Online Advertising_Number of click-throughs to apply to program","The number of click-throughs that resulted in completed applications."]
[null,"School, church, library_Number attending session","The number of building owners that heard about the program through a school, church, or library setting."]
[null,"School, church, library_Number of audit sign-ups","The number of building owners that signed up for assessments while marketing and outreach efforts occurred at the school, church, or library."]
[null,"Neighborhood Meeting_Number Attended","The number of building owners who attended a neighborhood meeting."]
[null,"Social Media_Number of Clicks","The number of clicks on links placed on any social media site, such as Twitter, Facebook, or LinkedIn, or other forms of \"social media\" (i.e., networking tools on the Internet. This does not include any form of advertisement through these social media services. (See above for more guidance.)"]
[null,"Social Media_Number of click-throughs to apply to program","The number of click-throughs that resulted in completed applications."]
[null,"Telethon/direct phone calls_Number of calls made","The number of calls made during any telethons."]
[null,"Telethon/direct phone calls_Number of calls answered","The number of calls that were answered during any telethons."]
[null,"Telethon/direct phone calls_Number of calls that lead to applications","The number of calls that resulted in a building owner filling out an application."]
[null,"Traditional advertising: Radio_Number of advertisements","The number of radio advertisements."]
[null,"Traditional advertising: Newspaper_Number of advertisements","The number of newspaper advertisements."]
[null,"Traditional advertising: TV_Number of advertisements","The number of TV advertisements."]
[null,"Webinar_Number of webinars","The number of webinars that were held for building owners."]
[null,"Webinar_Number of participants","The number of participants in the webinars."]
[null,"Website_Number of unique visits","The number of unique visits-- those from unique IP addresses for instance, to your program website."]
[null,"Website_Number of unique visits on application page","The number of unique visits-- those from unique IP addresses for instance, to the application page."]
[null,"Website_Number of web applicants","The number of people who successfully completed an application online."]

{"sheet":"Grantee Dashboard","index":2,"n_rows":28,"n_cols":79,"rows_kept":28,"cut":false,"hidden":false,"merged":[[4,40,4,41],[4,48,4,80],[4,28,5,28],[4,26,5,26],[4,1,4,2],[4,7,4,8],[4,11,4,17],[4,19,4,25],[4,36,4,39],[4,43,4,46],[4,30,4,34],[23,1,23,2],[2,6,2,7],[1,6,1,7],[0,6,0,7],[0,1,3,3],[18,1,18,2],[4,3,4,6],[0,4,0,5],[3,4,3,5],[2,4,2,5],[1,4,1,5],[3,6,3,7]]}
[null,"Grantee Dashboard",null,null,"Date",null,"2015-05-19"]
[null,null,null,null,"Award Number",null,3797]
[null,null,null,null,"Grantee",null,"Rutland, VT"]
[null,null,null,null,"Granted Amount",null,4487588]
[null,null,null,"OUTLAYS",null,null,null,"LEVERAGING",null,"INVOICED COST*",null,"ASSESSMENTS",null,null,null,null,null,null,null,"UPGRADES*",null,null,null,null,null,null,"Commercial Buildings Floorspace (square feet)*",null,"Total Job hours",null,"ANNUAL ESTIMATED ENERGY SAVINGS",null,null,null,null,null,"MARKET TRANSFORMATION",null,null,null,"INDIVIDUALS TRAINED AND CERTIFIED",null,null,"LOAN INFORMATION*",null,null,null,null,"MARKETING & OUTREACH"]
[null,"Year","Quarter","Total Marketing & Outreach","Labor & Materials Cost","Other Program Expenses","Total Grantee Outlays","Other Federal Expenditures","Non-Federal Expenditures","Retrofit Invoiced Cost",null,"Residential Single-Family","Residential Multi-Family Units","Residential Multi-Family Buildings","Commercial Buildings"," Industrial Buildings","Agricultural Buildings","Total Assessments",null,"Residential Single-Family","Residential Multi-Family Units","Residential Multi-Family Buildings","Commercial Buildings"," Industrial Buildings","Agricultural Buildings","Total Upgrades",null,null,null,null,"Electricity (kWh)","Natural Gas (therms)","Heating oil (gallons)","LPG (gallons)","Energy Cost Savings",null,"Market Definition - Residential","Market Definition - Commercial","Market Definition - Other (Please specify here)","Number of active contractors performing retrofits under program","Number of Trained Workers","Number of Certified Workers",null,"Number of Loans Provided - Residential","Total Amount of Loans Provided - Residential ($)","Number of Loans Provided - Commercial","Total Amount of Loans Provided - Commercial ($)",null,"Business organization outreach_Number attending session","Contests_Number of Contests","Contests_Number of participants","Direct mail_Number of direct mail slips","Direct mail_Number of applications with direct mail IDs","Door to door_Number of homes visited","Door to door_Number of homes agreeing","Hotline_Number of calls","Hotline_Number of calls that lead to applications","One-stop-shop_Number of visitors","One-stop-shop_Number who requests services","One-stop-shop_Number of clients served","Online Advertising_Number of advertisements","Online Advertising_Number of clicks","Online Advertising_Number of click-throughs to apply to program","School, church, library_Number attending session","School, church, library_Number of audit sign-ups","Neighborhood Meeting_Number Attended","Social Media_Number of Clicks","Social Media_Number of click-throughs to apply to program","Telethon/direct phone calls_Number of calls made","Telethon/direct phone calls_Number of calls answered","Telethon/direct phone calls_Number of calls that lead to applications","Traditional advertising: Radio_Number of advertisements","Traditional advertising: Newspaper_Number of advertisements","Traditional advertising: TV_Number of advertisements","Webinar_Number of webinars","Webinar_Number of participants","Website_Number of unique visits","Website_Number of unique visits on application page","Website_Number of web applicants"]
[null,2010,4,9224.1299999999992,81900,83591.490000000005,174715.62,0,12475,89451,null,273,0,0,0,0,0,273,null,29,0,0,0,0,0,29,0,null,4300,null,3348,0,2802,0,5172,null,null,null,null,14,null,null,null,1,3175,null,null,null,25,0,0,0,0,0,0,0,0,0,0,0,0,0,0,0,0,0,0,0,258,192,57,0,3,0,0,0,0,0,2]
[null,2011,1,18796.849999999999,130080.55,879732.29,1028609.6900000001,0,176296,187950,null,137,0,0,0,0,0,137,null,28,0,0,0,0,0,28,0,null,9548,null,30053,0,14138,0,89763,null,null,null,null,12,0,1,null,9,79740,null,null,null,37,0,0,25300,0,0,0,0,0,581,538,425,0,0,0,3,3,8,309,0,215,0,49,0,1,0,0,0,194,0,0]
[null,2011,2,11399.21,74129.600000000006,65960.22,151489.03,0,165446,323069,null,120,0,0,0,0,0,120,null,40,0,0,0,0,0,40,0,null,4596,null,15151,0,12797,0,33782,null,null,null,null,12,15,0,null,12,90226,null,null,null,32,0,0,0,0,0,0,0,0,140,92,114,0,0,0,20,3,51,997,0,0,0,0,0,0,0,0,0,194,0,0]
[null,2011,3,7191.12,65682.899999999994,291532.61,364406.63,0,180094,262097,null,202,0,0,0,0,0,202,null,38,0,0,0,0,0,38,0,null,5572,null,11604,0,12078,0,30211,null,null,null,null,17,54,19,null,7,66692,null,null,null,323,0,0,0,0,0,0,0,0,234,214,173,0,0,0,2,2,76,686,0,124,71,15,0,0,0,0,0,330,0,0]
[null,2011,4,14388,85046,57807,157241,0,263442,350916,null,168,0,0,0,0,0,168,null,52,0,0,0,0,0,52,0,null,5294,null,10089,0,14164,0,42397,null,null,null,null,15,6,2,null,15,176283,null,null,null,76,0,0,0,0,100,0,0,0,165,164,124,432,0,0,0,0,0,85,0,0,0,0,200,35,0,0,0,474,0,0]
[null,2012,1,16857,108639,90719,216215,33345,424232,615075,null,165,0,0,0,0,0,165,null,86,0,0,0,0,0,86,0,null,10533,null,24432,0,4038,0,93421,null,null,null,null,14,6,10,null,31,337375,null,null,null,0,0,0,41,76,60,5,0,0,197,197,145,0,0,0,27,7,30,47,0,90,80,0,0,30,0,0,0,444,0,0]
[null,2012,2,5809,86803,117304,209916,73500,461637,757852,null,170,0,0,0,0,0,170,null,116,0,0,0,0,0,116,0,null,13272,null,29833,0,34201,0,116991,null,null,null,null,12,0,0,null,26,299114,null,null,null,6,0,0,109,2,0,0,144,96,8,5,5,0,0,0,6,6,3,162,0,0,0,0,0,30,0,0,0,319,0,0]
[null,2012,3,14665,80536,89294,184495,54385,247432,321593,null,80,0,0,0,0,0,80,null,54,0,0,0,0,0,54,0,null,7434,null,10218,0,13492,0,51411,null,null,null,null,12,0,0,null,13,135534,null,null,null,0,0,0,723,2,0,0,87,58,50,11,11,0,0,0,20,1,10,193,0,0,0,0,0,30,0,0,0,354,0,0]
[null,2012,4,12626,100248,238084,350958,74685,442697,620355,null,94,0,0,0,0,0,94,null,73,0,0,0,0,0,73,0,null,5080,null,23912,0,23253,0,73031,null,null,null,null,12,8,0,null,19,296588,null,null,null,20,0,0,0,0,20,1,62,50,11,11,5,0,0,15,1,0,260,0,0,0,0,0,31,0,0,0,0,305,0,0]
[null,2013,1,9206,17161,121579,147946,0,195407,327321,null,141,0,0,0,0,0,141,null,42,0,0,0,0,0,42,0,null,2493,null,8265,0,14134,0,38803,null,null,null,null,12,0,0,null,11,123961,null,null,null,30,0,0,0,0,30,0,172,154,9,9,9,0,0,0,1,1,50,232,10,0,0,0,152,9,0,0,0,754,306,9]
[null,2013,2,21707,9981,164420,196108,20690,52226,108620,null,91,0,0,0,0,0,91,null,16,0,0,0,0,0,16,0,null,4637,null,3029,0,3851,0,14213,null,null,null,null,12,0,0,null,8,84569,null,null,null,48,0,0,3700,15,4000,1,86,82,0,0,0,0,0,0,0,0,10,154,0,246,150,94,608,15,0,0,0,508,238,39]
[null,2013,3,13721,2150,165220,181091,0,249406,268817,null,71,2,0,0,0,0,73,null,46,0,0,0,0,0,46,0,null,4476,null,2593,0,8111,0,37936,null,null,null,null,12,0,0,null,9,104029,null,null,null,32,0,0,750,1,0,0,57,46,7,7,7,0,0,0,6,1,40,103,0,0,0,0,274,15,0,0,0,524,246,31]
[null,"Q3 2013 Subtotal",null,{"$f":"SUM(D7:D18)","v":155590.31},{"$f":"SUM(E7:E18)","v":842357.05},2365243.61,3363190.97,256605,2870790,4233116,null,{"$f":"SUM(L7:L18)","v":1712},{"$f":"SUM(M7:M18)","v":2},0,0,0,0,1714,null,{"$f":"SUM(T7:T18)","v":620},{"$f":"SUM(U7:U18)","v":0},0,0,0,0,620,0,null,{"$f":"SUM(AC7:AC18)","v":77235},null,{"$f":"SUM(AE7:AE18)","v":172527},{"$f":"SUM(AF7:AF18)","v":0},157059,0,627131,null,{"$f":"SUM(AK7:AK18)","v":0},{"$f":"SUM(AL7:AL18)","v":0},0,null,89,32,null,{"$f":"SUM(AR7:AR18)","v":161},{"$f":"SUM(AS7:AS18)","v":1797286},0,0,null,{"$f":"SUM(AW7:AW18)","v":629},{"$f":"SUM(AX7:AX18)","v":0},0,30623,96,4210,7,608,486,1402,1248,1018,432,0,15,86,24,538,2968,10,933,493,215,1265,168,0,0,0,4400,790,81]
[null,2013,4,null,null,null,0,null,null,257992,null,null,null,null,null,null,null,0,null,44,null,null,null,0,null,44,0,null,null,null,7996,0,6685.7142857142853,3613.2705573196104,32665]
[null,2014,1,null,null,null,0,null,null,337096,null,null,null,null,null,null,null,0,null,46,null,null,null,0,null,46,0,null,null,null,6643,0,8214.2857142857138,2375.9991240556228,39051]
[null,2014,2,null,null,null,0,null,null,184848,null,null,null,null,null,null,null,0,null,20,null,null,null,0,null,20,0,null,null,null,5141,0,4557.1428571428569,131.391656629804,17311]
[null,2014,3,null,null,null,0,null,null,null,null,null,null,null,null,null,null,0,null,null,null,null,null,null,null,0]
[null,"Total",null,{"$f":"SUM(D19:D23)","v":155590.31},842357.05,2365243.61,3363190.97,256605,2870790,5013052,null,{"$f":"SUM(L19:L23)","v":1712},2,0,0,0,0,1714,null,{"$f":"SUM(T19:T23)","v":730},0,0,0,0,0,730,0,null,{"$f":"SUM(AC19:AC23)","v":77235},null,{"$f":"SUM(AE19:AE23)","v":192307},{"$f":"SUM(AF19:AF23)","v":0},{"$f":"SUM(AG19:AG23)","v":176516.14285714287},{"$f":"SUM(AH19:AH23)","v":6120.6613380050376},{"$f":"SUM(AI19:AI23)","v":716158},null,{"$f":"SUM(AK19:AK23)","v":0},{"$f":"SUM(AL19:AL23)","v":0},{"$f":"SUM(AM19:AM23)","v":0},null,{"$f":"SUM(AO19:AO23)","v":89},{"$f":"SUM(AP19:AP23)","v":32},null,{"$f":"SUM(AR19:AR23)","v":161},{"$f":"SUM(AS19:AS23)","v":1797286},{"$f":"SUM(AT19:AT23)","v":0},{"$f":"SUM(AU19:AU23)","v":0},null,{"$f":"SUM(AW19:AW23)","v":629},0,0,30623,96,4210,7,608,486,1402,1248,1018,432,0,15,86,24,538,2968,10,933,493,215,1265,168,0,0,0,4400,790,81]
[]
[]
[null,"* Aggregated from the Residential, Commercial, Agricultural and Industrial tabs."]
[null,"Note: Do not delete or rename any of tabs in this workbook.  Also do not alter the rows, columns, or cells in any way."]

{"sheet":"Expenditure Graph Data","index":3,"n_rows":21,"n_cols":10,"rows_kept":21,"cut":false,"hidden":true,"merged":[[1,2,1,9]]}
[]
[null,null,"Millions of Dollars ($)"]
[null,null,null,"Cumulative",null,"Cumulative",null,"Cumulative"]
[null,"Quarter-Year","Total Outlays ($)","BBNP Award Spending","Other Federal Expenditures (non-BBNP)","Other Fed Expenditures","Non-Federal Expenditures","Non-Fed Expenditures","Retrofit Invoiced Cost","Invoiced Upgrade Costs"]
[null,{"$f":"'Grantee Dashboard'!B7&\"-Q\"&'Grantee Dashboard'!C7","v":"2010-Q4"},{"$f":"'Grantee Dashboard'!G7/10^6","v":0.17471561999999999},{"$f":"C5","v":0.17471561999999999},{"$f":"'Grantee Dashboard'!H7/10^6","v":0},{"$f":"E5","v":0},{"$f":"'Grantee Dashboard'!I7/10^6","v":1.2475E-2},{"$f":"G5","v":1.2475E-2},{"$f":"'Grantee Dashboard'!J7/10^6","v":8.9451000000000003E-2},{"$f":"I5","v":8.9451000000000003E-2}]
[null,{"$f":"'Grantee Dashboard'!B8&\"-Q\"&'Grantee Dashboard'!C8","v":"2011-Q1"},{"$f":"'Grantee Dashboard'!G8/10^6","v":1.0286096900000001},{"$f":"C6+D5","v":1.2033253100000001},{"$f":"'Grantee Dashboard'!H8/10^6","v":0},{"$f":"E6+F5","v":0},{"$f":"'Grantee Dashboard'!I8/10^6","v":0.17629600000000001},{"$f":"G6+H5","v":0.18877100000000002},{"$f":"'Grantee Dashboard'!J8/10^6","v":0.18795000000000001},{"$f":"I6+J5","v":0.27740100000000001}]
[null,{"$f":"'Grantee Dashboard'!B9&\"-Q\"&'Grantee Dashboard'!C9","v":"2011-Q2"},{"$f":"'Grantee Dashboard'!G9/10^6","v":0.15148903},{"$f":"C7+D6","v":1.3548143400000001},{"$f":"'Grantee Dashboard'!H9/10^6","v":0},{"$f":"E7+F6","v":0},{"$f":"'Grantee Dashboard'!I9/10^6","v":0.16544600000000001},{"$f":"G7+H6","v":0.354217},{"$f":"'Grantee Dashboard'!J9/10^6","v":0.323069},{"$f":"I7+J6","v":0.60047000000000006}]
[null,{"$f":"'Grantee Dashboard'!B10&\"-Q\"&'Grantee Dashboard'!C10","v":"2011-Q3"},{"$f":"'Grantee Dashboard'!G10/10^6","v":0.36440663000000001},1.7192209700000001,{"$f":"'Grantee Dashboard'!H10/10^6","v":0},0,{"$f":"'Grantee Dashboard'!I10/10^6","v":0.180094},0.53431099999999998,{"$f":"'Grantee Dashboard'!J10/10^6","v":0.26209700000000002},0.86256700000000008]
[null,{"$f":"'Grantee Dashboard'!B11&\"-Q\"&'Grantee Dashboard'!C11","v":"2011-Q4"},{"$f":"'Grantee Dashboard'!G11/10^6","v":0.15724099999999999},1.87646197,{"$f":"'Grantee Dashboard'!H11/10^6","v":0},0,{"$f":"'Grantee Dashboard'!I11/10^6","v":0.26344200000000001},0.79775299999999993,{"$f":"'Grantee Dashboard'!J11/10^6","v":0.35091600000000001},1.2134830000000001]
[null,{"$f":"'Grantee Dashboard'!B12&\"-Q\"&'Grantee Dashboard'!C12","v":"2012-Q1"},{"$f":"'Grantee Dashboard'!G12/10^6","v":0.21621499999999999},2.0926769699999999,{"$f":"'Grantee Dashboard'!H12/10^6","v":3.3345E-2},3.3345E-2,{"$f":"'Grantee Dashboard'!I12/10^6","v":0.424232},1.2219849999999999,{"$f":"'Grantee Dashboard'!J12/10^6","v":0.61507500000000004},1.8285580000000001]
[null,{"$f":"'Grantee Dashboard'!B13&\"-Q\"&'Grantee Dashboard'!C13","v":"2012-Q2"},{"$f":"'Grantee Dashboard'!G13/10^6","v":0.20991599999999999},2.3025929700000001,{"$f":"'Grantee Dashboard'!H13/10^6","v":7.3499999999999996E-2},0.106845,{"$f":"'Grantee Dashboard'!I13/10^6","v":0.46163700000000002},1.683622,{"$f":"'Grantee Dashboard'!J13/10^6","v":0.75785199999999997},2.5864099999999999]
[null,{"$f":"'Grantee Dashboard'!B14&\"-Q\"&'Grantee Dashboard'!C14","v":"2012-Q3"},{"$f":"'Grantee Dashboard'!G14/10^6","v":0.18449499999999999},2.4870879700000001,{"$f":"'Grantee Dashboard'!H14/10^6","v":5.4385000000000003E-2},0.16122999999999998,{"$f":"'Grantee Dashboard'!I14/10^6","v":0.24743200000000001},1.931054,{"$f":"'Grantee Dashboard'!J14/10^6","v":0.32159300000000002},2.9080029999999999]
[null,{"$f":"'Grantee Dashboard'!B15&\"-Q\"&'Grantee Dashboard'!C15","v":"2012-Q4"},{"$f":"'Grantee Dashboard'!G15/10^6","v":0.35095799999999999},2.83804597,{"$f":"'Grantee Dashboard'!H15/10^6","v":7.4685000000000001E-2},0.23591499999999999,{"$f":"'Grantee Dashboard'!I15/10^6","v":0.44269700000000001},2.3737509999999999,{"$f":"'Grantee Dashboard'!J15/10^6","v":0.62035499999999999},3.5283579999999999]
[null,{"$f":"'Grantee Dashboard'!B16&\"-Q\"&'Grantee Dashboard'!C16","v":"2013-Q1"},{"$f":"'Grantee Dashboard'!G16/10^6","v":0.14794599999999999},2.9859919700000002,{"$f":"'Grantee Dashboard'!H16/10^6","v":0},0.23591499999999999,{"$f":"'Grantee Dashboard'!I16/10^6","v":0.195407},2.5691579999999998,{"$f":"'Grantee Dashboard'!J16/10^6","v":0.32732099999999997},{"$f":"I14+J13","v":3.8556789999999999}]
[null,{"$f":"'Grantee Dashboard'!B17&\"-Q\"&'Grantee Dashboard'!C17","v":"2013-Q2"},{"$f":"'Grantee Dashboard'!G17/10^6","v":0.196108},3.1820999700000003,{"$f":"'Grantee Dashboard'!H17/10^6","v":2.069E-2},0.25660499999999997,{"$f":"'Grantee Dashboard'!I17/10^6","v":5.2226000000000002E-2},2.6213839999999999,{"$f":"'Grantee Dashboard'!J17/10^6","v":0.10861999999999999},{"$f":"I15+J14","v":3.964299}]
[null,{"$f":"'Grantee Dashboard'!B18&\"-Q\"&'Grantee Dashboard'!C18","v":"2013-Q3"},{"$f":"'Grantee Dashboard'!G18/10^6","v":0.181091},3.3631909700000002,{"$f":"'Grantee Dashboard'!H18/10^6","v":0},0.25660499999999997,{"$f":"'Grantee Dashboard'!I18/10^6","v":0.24940599999999999},2.87079,{"$f":"'Grantee Dashboard'!J18/10^6","v":0.26881699999999997},{"$f":"I16+J15","v":4.2331159999999999}]
[null,{"$f":"'Grantee Dashboard'!B20&\"-Q\"&'Grantee Dashboard'!C20","v":"2013-Q4"},{"$f":"'Grantee Dashboard'!G20/10^6","v":0},3.3631909700000002,{"$f":"'Grantee Dashboard'!H20/10^6","v":0},0.25660499999999997,{"$f":"'Grantee Dashboard'!I20/10^6","v":0},2.87079,{"$f":"'Grantee Dashboard'!J20/10^6","v":0.257992},{"$f":"I17+J16","v":4.4911079999999997}]
[null,{"$f":"'Grantee Dashboard'!B21&\"-Q\"&'Grantee Dashboard'!C21","v":"2014-Q1"},{"$f":"'Grantee Dashboard'!G21/10^6","v":0},3.3631909700000002,{"$f":"'Grantee Dashboard'!H21/10^6","v":0},0.25660499999999997,{"$f":"'Grantee Dashboard'!I21/10^6","v":0},2.87079,{"$f":"'Grantee Dashboard'!J21/10^6","v":0.33709600000000001},4.8282039999999995]
[null,{"$f":"'Grantee Dashboard'!B22&\"-Q\"&'Grantee Dashboard'!C22","v":"2014-Q2"},{"$f":"'Grantee Dashboard'!G22/10^6","v":0},3.3631909700000002,{"$f":"'Grantee Dashboard'!H22/10^6","v":0},0.25660499999999997,{"$f":"'Grantee Dashboard'!I22/10^6","v":0},2.87079,{"$f":"'Grantee Dashboard'!J22/10^6","v":0.18484800000000001},5.0130519999999992]
[null,"2014-Q3",{"$f":"'Grantee Dashboard'!G23/10^6","v":0},{"$f":"C20+D19","v":3.3631909700000002},{"$f":"'Grantee Dashboard'!H23/10^6","v":0},{"$f":"E20+F19","v":0.25660499999999997},{"$f":"'Grantee Dashboard'!I23/10^6","v":0},{"$f":"G20+H19","v":2.87079},{"$f":"'Grantee Dashboard'!J23/10^6","v":0},{"$f":"I20+J19","v":5.0130519999999992}]
[null,"TOTAL",{"$f":"SUM(C5:C20)","v":3.3631909700000002},null,{"$f":"SUM(E5:E20)","v":0.25660499999999997},null,{"$f":"SUM(G5:G20)","v":2.87079},null,{"$f":"SUM(I5:I20)","v":5.0130519999999992}]

{"sheet":"Audit-Retrofit Graph Data","index":5,"n_rows":21,"n_cols":8,"rows_kept":21,"cut":false,"hidden":true,"merged":[]}
[]
[]
[]
[null,"Quarter-Year","Total Audits","Total Assessments","Total Retrofit Projects","Total Upgrades","Total Source Energy Savings","Cumulative Source Energy Savings"]
[null,{"$f":"'Grantee Dashboard'!B7&\"-Q\"&'Grantee Dashboard'!C7","v":"2010-Q4"},{"$f":"'Grantee Dashboard'!R7","v":273},{"$f":"C5","v":273},{"$f":"'Grantee Dashboard'!Z7","v":29},{"$f":"E5","v":29},{"$f":"('Grantee Dashboard'!AE7*3412.14*3.365)/1000000+('Grantee Dashboard'!AF7*100000*1.092)/1000000+('Grantee Dashboard'!AG7*(140000/1000000)*1.158)+('Grantee Dashboard'!AH7*(91330/1000000)*1.151)","v":492.70147748279999},{"$f":"G5","v":492.70147748279999}]
[null,{"$f":"'Grantee Dashboard'!B8&\"-Q\"&'Grantee Dashboard'!C8","v":"2011-Q1"},{"$f":"'Grantee Dashboard'!R8","v":137},{"$f":"C6+D5","v":410},{"$f":"'Grantee Dashboard'!Z8","v":28},{"$f":"E6+F5","v":57},{"$f":"('Grantee Dashboard'!AE8*3412.14*3.365)/1000000+('Grantee Dashboard'!AF8*100000*1.092)/1000000+('Grantee Dashboard'!AG8*(140000/1000000)*1.158)+('Grantee Dashboard'!AH8*(91330/1000000)*1.151)","v":2637.1166311083002},{"$f":"G6+H5","v":3129.8181085911001}]
[null,{"$f":"'Grantee Dashboard'!B9&\"-Q\"&'Grantee Dashboard'!C9","v":"2011-Q2"},{"$f":"'Grantee Dashboard'!R9","v":120},{"$f":"C7+D6","v":530},{"$f":"'Grantee Dashboard'!Z9","v":40},{"$f":"E7+F6","v":97},{"$f":"('Grantee Dashboard'!AE9*3412.14*3.365)/1000000+('Grantee Dashboard'!AF9*100000*1.092)/1000000+('Grantee Dashboard'!AG9*(140000/1000000)*1.158)+('Grantee Dashboard'!AH9*(91330/1000000)*1.151)","v":2248.6111660161},5378.4292746072006]
[null,{"$f":"'Grantee Dashboard'!B10&\"-Q\"&'Grantee Dashboard'!C10","v":"2011-Q3"},{"$f":"'Grantee Dashboard'!R10","v":202},732,{"$f":"'Grantee Dashboard'!Z10","v":38},135,{"$f":"('Grantee Dashboard'!AE10*3412.14*3.365)/1000000+('Grantee Dashboard'!AF10*100000*1.092)/1000000+('Grantee Dashboard'!AG10*(140000/1000000)*1.158)+('Grantee Dashboard'!AH10*(91330/1000000)*1.151)","v":2091.3207601643999},7469.7500347716004]
[null,{"$f":"'Grantee Dashboard'!B11&\"-Q\"&'Grantee Dashboard'!C11","v":"2011-Q4"},{"$f":"'Grantee Dashboard'!R11","v":168},900,{"$f":"'Grantee Dashboard'!Z11","v":52},187,{"$f":"('Grantee Dashboard'!AE11*3412.14*3.365)/1000000+('Grantee Dashboard'!AF11*100000*1.092)/1000000+('Grantee Dashboard'!AG11*(140000/1000000)*1.158)+('Grantee Dashboard'!AH11*(91330/1000000)*1.151)","v":2412.1080757478999},9881.8581105195008]
[null,{"$f":"'Grantee Dashboard'!B12&\"-Q\"&'Grantee Dashboard'!C12","v":"2012-Q1"},{"$f":"'Grantee Dashboard'!R12","v":165},1065,{"$f":"'Grantee Dashboard'!Z12","v":86},273,{"$f":"('Grantee Dashboard'!AE12*3412.14*3.365)/1000000+('Grantee Dashboard'!AF12*100000*1.092)/1000000+('Grantee Dashboard'!AG12*(140000/1000000)*1.158)+('Grantee Dashboard'!AH12*(91330/1000000)*1.151)","v":935.16514607520003},10817.023256594701]
[null,{"$f":"'Grantee Dashboard'!B13&\"-Q\"&'Grantee Dashboard'!C13","v":"2012-Q2"},{"$f":"'Grantee Dashboard'!R13","v":170},1235,{"$f":"'Grantee Dashboard'!Z13","v":116},389,{"$f":"('Grantee Dashboard'!AE13*3412.14*3.365)/1000000+('Grantee Dashboard'!AF13*100000*1.092)/1000000+('Grantee Dashboard'!AG13*(140000/1000000)*1.158)+('Grantee Dashboard'!AH13*(91330/1000000)*1.151)","v":5887.2041838662999},16704.227440461]
[null,{"$f":"'Grantee Dashboard'!B14&\"-Q\"&'Grantee Dashboard'!C14","v":"2012-Q3"},{"$f":"'Grantee Dashboard'!R14","v":80},1315,{"$f":"'Grantee Dashboard'!Z14","v":54},443,{"$f":"('Grantee Dashboard'!AE14*3412.14*3.365)/1000000+('Grantee Dashboard'!AF14*100000*1.092)/1000000+('Grantee Dashboard'!AG14*(140000/1000000)*1.158)+('Grantee Dashboard'!AH14*(91330/1000000)*1.151)","v":2304.6445945398},19008.872035000801]
[null,{"$f":"'Grantee Dashboard'!B15&\"-Q\"&'Grantee Dashboard'!C15","v":"2012-Q4"},{"$f":"'Grantee Dashboard'!R15","v":94},1409,{"$f":"'Grantee Dashboard'!Z15","v":73},516,{"$f":"('Grantee Dashboard'!AE15*3412.14*3.365)/1000000+('Grantee Dashboard'!AF15*100000*1.092)/1000000+('Grantee Dashboard'!AG15*(140000/1000000)*1.158)+('Grantee Dashboard'!AH15*(91330/1000000)*1.151)","v":4044.3303835032002},23053.202418503999]
[null,{"$f":"'Grantee Dashboard'!B16&\"-Q\"&'Grantee Dashboard'!C16","v":"2013-Q1"},{"$f":"'Grantee Dashboard'!R16","v":141},1550,{"$f":"'Grantee Dashboard'!Z16","v":42},558,{"$f":"('Grantee Dashboard'!AE16*3412.14*3.365)/1000000+('Grantee Dashboard'!AF16*100000*1.092)/1000000+('Grantee Dashboard'!AG16*(140000/1000000)*1.158)+('Grantee Dashboard'!AH16*(91330/1000000)*1.151)","v":2386.3015793415002},25439.503997845499]
[null,{"$f":"'Grantee Dashboard'!B17&\"-Q\"&'Grantee Dashboard'!C17","v":"2013-Q2"},{"$f":"'Grantee Dashboard'!R17","v":91},1641,{"$f":"'Grantee Dashboard'!Z17","v":16},574,{"$f":"('Grantee Dashboard'!AE17*3412.14*3.365)/1000000+('Grantee Dashboard'!AF17*100000*1.092)/1000000+('Grantee Dashboard'!AG17*(140000/1000000)*1.158)+('Grantee Dashboard'!AH17*(91330/1000000)*1.151)","v":659.10264698190008},26098.6066448274]
[null,{"$f":"'Grantee Dashboard'!B18&\"-Q\"&'Grantee Dashboard'!C18","v":"2013-Q3"},{"$f":"'Grantee Dashboard'!R18","v":73},1714,{"$f":"'Grantee Dashboard'!Z18","v":46},620,{"$f":"('Grantee Dashboard'!AE18*3412.14*3.365)/1000000+('Grantee Dashboard'!AF18*100000*1.092)/1000000+('Grantee Dashboard'!AG18*(140000/1000000)*1.158)+('Grantee Dashboard'!AH18*(91330/1000000)*1.151)","v":1344.7277599023},27443.3344047297]
[null,{"$f":"'Grantee Dashboard'!B20&\"-Q\"&'Grantee Dashboard'!C20","v":"2013-Q4"},{"$f":"'Grantee Dashboard'!R20","v":0},{"$f":"C17+D16","v":1714},{"$f":"'Grantee Dashboard'!Z20","v":44},{"$f":"E17+F16","v":664},{"$f":"('Grantee Dashboard'!AE20*3412.14*3.365)/1000000+('Grantee Dashboard'!AF20*100000*1.092)/1000000+('Grantee Dashboard'!AG20*(140000/1000000)*1.158)+('Grantee Dashboard'!AH20*(91330/1000000)*1.151)","v":1555.5268813956},{"$f":"G17+H16","v":28998.861286125299}]
[null,{"$f":"'Grantee Dashboard'!B21&\"-Q\"&'Grantee Dashboard'!C21","v":"2014-Q1"},{"$f":"'Grantee Dashboard'!R21","v":0},1714,{"$f":"'Grantee Dashboard'!Z21","v":46},710,{"$f":"('Grantee Dashboard'!AE21*3412.14*3.365)/1000000+('Grantee Dashboard'!AF21*100000*1.092)/1000000+('Grantee Dashboard'!AG21*(140000/1000000)*1.158)+('Grantee Dashboard'!AH21*(91330/1000000)*1.151)","v":1657.7409368572999},30656.602222982598]
[null,{"$f":"'Grantee Dashboard'!B22&\"-Q\"&'Grantee Dashboard'!C22","v":"2014-Q2"},{"$f":"'Grantee Dashboard'!R22","v":0},1714,{"$f":"'Grantee Dashboard'!Z22","v":20},730,{"$f":"('Grantee Dashboard'!AE22*3412.14*3.365)/1000000+('Grantee Dashboard'!AF22*100000*1.092)/1000000+('Grantee Dashboard'!AG22*(140000/1000000)*1.158)+('Grantee Dashboard'!AH22*(91330/1000000)*1.151)","v":811.64419650510001},31468.246419487699]
[null,"2014-Q3",{"$f":"'Grantee Dashboard'!R23","v":0},{"$f":"C20+D19","v":1714},{"$f":"'Grantee Dashboard'!Z23","v":0},{"$f":"E20+F19","v":730},{"$f":"('Grantee Dashboard'!AE23*3412.14*3.365)/1000000+('Grantee Dashboard'!AF23*100000*1.092)/1000000+('Grantee Dashboard'!AG23*(140000/1000000)*1.158)+('Grantee Dashboard'!AH23*(91330/1000000)*1.151)","v":0},{"$f":"G20+H19","v":31468.246419487699}]
[null,"TOTAL",{"$f":"SUM(C5:C20)","v":1714},null,{"$f":"SUM(E5:E20)","v":730},null,{"$f":"SUM(G5:G20)","v":31468.246419487699}]